[Event "*** Titled Tuesday Blitz"]
[Site "Chess.com"]
[Date "2020.01.07"]
[Round "1"]
[White "temus_galaktionov"]
[Black "Induwara_IM"]
[Result "1-0"]
[WhiteElo "2754"]
[BlackElo "2387"]
[TimeControl "180+2"]
[EndTime "13:09:00 PST"]
[Termination "temus_galaktionov won by resignation"]

1. d4 {[%clk 0:03:00.6]} 1... Nf6 {[%clk 0:01:55.7]} 2. Nf3 {[%clk 0:03:01.3]}
2... d5 {[%clk 0:01:56.4]} 3. c4 {[%clk 0:03:02.3]} 3... dxc4 {[%clk 0:01:57.5]}
4. e3 {[%clk 0:03:03.1]} 4... a6 {[%clk 0:01:59.1]} 5. a4 {[%clk 0:03:03]} 5...
Nc6 {[%clk 0:01:59.4]} 6. Bxc4 {[%clk 0:03:02.2]} 6... Bg4 {[%clk 0:02:00.9]} 7.
h3 {[%clk 0:03:02.8]} 7... Bxf3 {[%clk 0:02:01.7]} 8. Qxf3 {[%clk 0:03:03.2]}
8... e5 {[%clk 0:02:01.3]} 9. O-O {[%clk 0:02:50.7]} 9... Bd6 {[%clk 0:01:57.6]}
10. d5 {[%clk 0:02:44.5]} 10... Ne7 {[%clk 0:01:58.5]} 11. Nc3 {[%clk
0:02:44.3]} 11... O-O {[%clk 0:01:57.3]} 12. e4 {[%clk 0:02:42.6]} 12... Ng6
{[%clk 0:01:57.4]} 13. Be3 {[%clk 0:02:42.7]} 13... Nd7 {[%clk 0:01:50.5]} 14.
g4 {[%clk 0:02:36.3]} 14... Qh4 {[%clk 0:01:44.7]} 15. Qg3 {[%clk 0:02:32.7]}
15... Be7 {[%clk 0:01:41.6]} 16. Qxh4 {[%clk 0:02:29.1]} 16... Nxh4 {[%clk
0:01:40.8]} 17. f3 {[%clk 0:02:30.3]} 17... h6 {[%clk 0:01:39.7]} 18. Kf2 {[%clk
0:02:30.2]} 18... Bg5 {[%clk 0:01:40.1]} 19. Rac1 {[%clk 0:02:18.8]} 19... Rfc8
{[%clk 0:01:38.5]} 20. Bxg5 {[%clk 0:02:08.6]} 20... hxg5 {[%clk 0:01:39.4]} 21.
Rc2 {[%clk 0:02:07.1]} 21... Kf8 {[%clk 0:01:40.3]} 22. Rfc1 {[%clk 0:02:07.8]}
22... Ke7 {[%clk 0:01:41.6]} 23. Ne2 {[%clk 0:02:04.3]} 23... Kd6 {[%clk
0:01:40]} 24. Ng3 {[%clk 0:02:03.1]} 24... g6 {[%clk 0:01:41.2]} 25. Bd3 {[%clk
0:02:02.6]} 25... c5 {[%clk 0:01:32.4]} 26. dxc6 {[%clk 0:02:02.9]} 26... Rxc6
{[%clk 0:01:34]} 27. Rxc6+ {[%clk 0:02:03.2]} 27... bxc6 {[%clk 0:01:35.9]} 28.
Bc4 {[%clk 0:02:03.7]} 28... a5 {[%clk 0:01:32.1]} 29. Nf1 {[%clk 0:01:56.7]}
29... Nb6 {[%clk 0:01:29.3]} 30. Bb3 {[%clk 0:01:52.1]} 30... f5 {[%clk
0:01:27.5]} 31. Nd2 {[%clk 0:01:53]} 31... Rb8 {[%clk 0:01:22.9]} 32. Rc3 {[%clk
0:01:51.3]} 32... Kc7 {[%clk 0:01:17.1]} 33. Bc2 {[%clk 0:01:46.6]} 33... Rf8
{[%clk 0:01:14.8]} 34. b3 {[%clk 0:01:43.6]} 34... Kd6 {[%clk 0:01:13.8]} 35.
Bd3 {[%clk 0:01:37.4]} 35... Rf6 {[%clk 0:01:12.9]} 36. Bf1 {[%clk 0:01:35.6]}
36... Kd7 {[%clk 0:01:12.3]} 37. Rc5 {[%clk 0:01:29.9]} 37... fxe4 {[%clk
0:01:09.3]} 38. Rxe5 {[%clk 0:01:27]} 38... Nxf3 {[%clk 0:01:08.5]} 39. Nxe4
{[%clk 0:01:28.1]} 39... Nxe5+ {[%clk 0:01:07.8]} 40. Nxf6+ {[%clk 0:01:29.2]}
40... Ke6 {[%clk 0:01:05.2]} 41. Ne4 {[%clk 0:01:29.8]} 41... Nf7 {[%clk
0:01:06.1]} 42. Nc5+ {[%clk 0:01:25.9]} 42... Kd5 {[%clk 0:01:03.3]} 43. Nb7
{[%clk 0:01:27]} 43... Nd6 {[%clk 0:00:56]} 44. Nxa5 {[%clk 0:01:27.5]} 44...
Ne4+ {[%clk 0:00:57.3]} 45. Ke3 {[%clk 0:01:27.7]} 45... Nc5 {[%clk 0:00:56.5]}
46. Bg2+ {[%clk 0:01:24.7]} 46... Kd6 {[%clk 0:00:57.9]} 47. Bxc6 {[%clk
0:01:11]} 47... Nxb3 {[%clk 0:00:45.2]} 48. Nxb3 {[%clk 0:01:11.2]} 48... Kxc6
{[%clk 0:00:46.5]} 49. a5 {[%clk 0:01:12.3]} 49... Nd5+ {[%clk 0:00:43.9]} 50.
Ke4 {[%clk 0:01:13.3]} 50... Nf4 {[%clk 0:00:44.7]} 51. h4 {[%clk 0:01:14.4]}
51... Ne6 {[%clk 0:00:37.1]} 52. h5 {[%clk 0:01:15.5]} 52... gxh5 {[%clk
0:00:36.2]} 53. gxh5 {[%clk 0:01:17.4]} 53... g4 {[%clk 0:00:36.2]} 54. Nd4+
{[%clk 0:01:16.2]} 54... Nxd4 {[%clk 0:00:33.3]} 55. Kxd4 {[%clk 0:01:18.1]}
55... g3 {[%clk 0:00:34.8]} 56. Ke3 {[%clk 0:01:19.1]} 1-0

[Event "*** Titled Tuesday Blitz"]
[Site "Chess.com"]
[Date "2020.01.07"]
[Round "1"]
[White "albano87"]
[Black "Zq1"]
[Result "1/2-1/2"]
[WhiteElo "2061"]
[BlackElo "2523"]
[TimeControl "180+2"]
[EndTime "13:09:00 PST"]
[Termination "Game drawn by repetition"]

1. d4 {[%clk 0:03:00.7]} 1... Nf6 {[%clk 0:02:58.1]} 2. Nf3 {[%clk 0:02:59.8]}
2... e6 {[%clk 0:02:58.2]} 3. g3 {[%clk 0:03:00.7]} 3... d5 {[%clk 0:02:58.5]}
4. Bg2 {[%clk 0:03:01]} 4... b5 {[%clk 0:02:59.6]} 5. O-O {[%clk 0:03:00.9]}
5... Bb7 {[%clk 0:03:00.3]} 6. a4 {[%clk 0:03:01.6]} 6... b4 {[%clk 0:03:00.7]}
7. Ne5 {[%clk 0:03:02.6]} 7... Nbd7 {[%clk 0:03:00.8]} 8. c4 {[%clk 0:03:03]}
8... Be7 {[%clk 0:02:57.5]} 9. b3 {[%clk 0:02:59.6]} 9... O-O {[%clk 0:02:57.2]}
10. Bb2 {[%clk 0:03:00]} 10... a5 {[%clk 0:02:57]} 11. Nd2 {[%clk 0:02:59.5]}
11... c5 {[%clk 0:02:57]} 12. cxd5 {[%clk 0:02:49.3]} 12... Bxd5 {[%clk
0:02:55.9]} 13. e4 {[%clk 0:02:41.2]} 13... Bb7 {[%clk 0:02:54.8]} 14. Nxd7
{[%clk 0:02:22]} 14... Qxd7 {[%clk 0:02:34.9]} 15. e5 {[%clk 0:02:22]} 15... Nd5
{[%clk 0:02:23.8]} 16. Ne4 {[%clk 0:02:04.4]} 16... Rac8 {[%clk 0:02:12.8]} 17.
Rc1 {[%clk 0:01:58.3]} 17... Ba6 {[%clk 0:02:08.5]} 18. Re1 {[%clk 0:01:54.7]}
18... c4 {[%clk 0:01:59.5]} 19. Nc5 {[%clk 0:01:35.1]} 19... Bxc5 {[%clk
0:01:53.5]} 20. bxc4 {[%clk 0:01:35.6]} 20... Nc3 {[%clk 0:01:28.9]} 21. Bxc3
{[%clk 0:01:33.1]} 21... bxc3 {[%clk 0:01:29.8]} 22. dxc5 {[%clk 0:01:32.8]}
22... Qd2 {[%clk 0:01:26.9]} 23. c6 {[%clk 0:01:21.8]} 23... Bxc4 {[%clk
0:01:22.6]} 24. Qc2 {[%clk 0:01:16.3]} 24... Bb3 {[%clk 0:01:08.9]} 25. Qxc3
{[%clk 0:01:16.4]} 25... Qxc3 {[%clk 0:01:08.7]} 26. Rxc3 {[%clk 0:01:17.2]}
26... Bd5 {[%clk 0:00:56.6]} 27. Bxd5 {[%clk 0:01:09.3]} 27... exd5 {[%clk
0:00:57.7]} 28. c7 {[%clk 0:00:56.4]} 28... Rfe8 {[%clk 0:00:51.4]} 29. Rc5
{[%clk 0:00:55.1]} 29... f6 {[%clk 0:00:47.3]} 30. f4 {[%clk 0:00:50.5]} 30...
fxe5 {[%clk 0:00:48.3]} 31. fxe5 {[%clk 0:00:50.8]} 31... Kf7 {[%clk 0:00:45.1]}
32. Rxa5 {[%clk 0:00:40.5]} 32... Rxc7 {[%clk 0:00:44.6]} 33. Rxd5 {[%clk
0:00:42.1]} 33... Ra8 {[%clk 0:00:39.5]} 34. a5 {[%clk 0:00:43]} 34... Rca7
{[%clk 0:00:34.1]} 35. e6+ {[%clk 0:00:40.6]} 35... Ke7 {[%clk 0:00:33.7]} 36.
Rf5 {[%clk 0:00:40.5]} 36... Rxa5 {[%clk 0:00:22.1]} 37. Rf7+ {[%clk 0:00:40.9]}
37... Kd6 {[%clk 0:00:23.1]} 38. Rd7+ {[%clk 0:00:37.8]} 38... Kc6 {[%clk
0:00:24]} 39. Rxg7 {[%clk 0:00:35.2]} 39... h5 {[%clk 0:00:24.8]} 40. Rd7 {[%clk
0:00:24.4]} 40... Re8 {[%clk 0:00:22.4]} 41. Rc1+ {[%clk 0:00:25.3]} 41... Kb6
{[%clk 0:00:23.2]} 42. Rd6+ {[%clk 0:00:15.2]} 42... Kb7 {[%clk 0:00:23.2]} 43.
Rb1+ {[%clk 0:00:16.3]} 43... Kc7 {[%clk 0:00:23.7]} 44. Rd7+ {[%clk 0:00:17.8]}
44... Kc6 {[%clk 0:00:24.7]} 45. Rc1+ {[%clk 0:00:19]} 45... Kb6 {[%clk
0:00:25.5]} 46. Rd6+ {[%clk 0:00:19.4]} 46... Kb7 {[%clk 0:00:24.9]} 47. Rd7+
{[%clk 0:00:17.4]} 47... Kb6 {[%clk 0:00:25.7]} 1/2-1/2

[Event "*** Titled Tuesday Blitz"]
[Site "Chess.com"]
[Date "2020.01.07"]
[Round "1"]
[White "David_Paravyan"]
[Black "cukus"]
[Result "1-0"]
[WhiteElo "2873"]
[BlackElo "2457"]
[TimeControl "180+2"]
[EndTime "13:09:05 PST"]
[Termination "David_Paravyan won by checkmate"]

1. e4 {[%clk 0:02:59.9]} 1... e5 {[%clk 0:03:00.4]} 2. Nf3 {[%clk 0:03:00.8]}
2... Nf6 {[%clk 0:03:00.7]} 3. Nxe5 {[%clk 0:03:00.7]} 3... d6 {[%clk
0:03:01.2]} 4. Nf3 {[%clk 0:03:01.5]} 4... Nxe4 {[%clk 0:03:01.9]} 5. d4 {[%clk
0:02:54.6]} 5... d5 {[%clk 0:03:02.4]} 6. Bd3 {[%clk 0:02:52.7]} 6... Bd6 {[%clk
0:03:02.9]} 7. O-O {[%clk 0:02:52.5]} 7... O-O {[%clk 0:03:03.5]} 8. c4 {[%clk
0:02:53.8]} 8... c6 {[%clk 0:03:04.4]} 9. Qb3 {[%clk 0:02:55]} 9... Na6 {[%clk
0:02:59.2]} 10. Re1 {[%clk 0:02:54]} 10... Bf5 {[%clk 0:02:33.3]} 11. Nc3 {[%clk
0:02:44.7]} 11... Nec5 {[%clk 0:02:26]} 12. dxc5 {[%clk 0:02:43.5]} 12... Nxc5
{[%clk 0:02:26]} 13. Bxf5 {[%clk 0:02:44.7]} 13... Nxb3 {[%clk 0:02:25.2]} 14.
axb3 {[%clk 0:02:46.5]} 14... Bb4 {[%clk 0:02:15.5]} 15. cxd5 {[%clk 0:02:40.4]}
15... cxd5 {[%clk 0:02:15.5]} 16. Rd1 {[%clk 0:02:36.1]} 16... Bxc3 {[%clk
0:02:06.7]} 17. bxc3 {[%clk 0:02:36.9]} 17... Qf6 {[%clk 0:02:05.8]} 18. Nd4
{[%clk 0:02:35.8]} 18... a6 {[%clk 0:02:01.5]} 19. Bd2 {[%clk 0:02:30.2]} 19...
Rfe8 {[%clk 0:02:00.8]} 20. Bd3 {[%clk 0:02:14.9]} 20... h6 {[%clk 0:01:56.1]}
21. g3 {[%clk 0:02:15.5]} 21... Re7 {[%clk 0:01:51.6]} 22. b4 {[%clk 0:02:14.1]}
22... Rae8 {[%clk 0:01:36.5]} 23. Kg2 {[%clk 0:02:14.9]} 23... Qb6 {[%clk
0:01:21]} 24. h4 {[%clk 0:02:14.1]} 24... Re5 {[%clk 0:01:11.3]} 25. Bf4 {[%clk
0:02:04.4]} 25... R5e7 {[%clk 0:01:09.9]} 26. Nf5 {[%clk 0:01:59.3]} 26... Rd7
{[%clk 0:01:09.7]} 27. Re1 {[%clk 0:01:56.2]} 27... Rdd8 {[%clk 0:01:09.2]} 28.
h5 {[%clk 0:01:48.9]} 28... Qf6 {[%clk 0:01:02.8]} 29. Nd4 {[%clk 0:01:49.2]}
29... Re7 {[%clk 0:00:57.2]} 30. Rac1 {[%clk 0:01:30.6]} 30... Rde8 {[%clk
0:00:31.4]} 31. Rh1 {[%clk 0:01:03]} 31... Rc8 {[%clk 0:00:32.1]} 32. Rh4 {[%clk
0:00:55.7]} 32... Ree8 {[%clk 0:00:31.6]} 33. Rg4 {[%clk 0:00:53.7]} 33... Kh8
{[%clk 0:00:27.8]} 34. Bd2 {[%clk 0:00:46.3]} 34... Rc7 {[%clk 0:00:23.6]} 35.
Nf5 {[%clk 0:00:41.5]} 35... Rg8 {[%clk 0:00:24]} 36. Re1 {[%clk 0:00:40.9]}
36... Rd7 {[%clk 0:00:23.6]} 37. Bb1 {[%clk 0:00:33.9]} 37... a5 {[%clk
0:00:22]} 38. bxa5 {[%clk 0:00:34.4]} 38... Qa6 {[%clk 0:00:19.5]} 39. Be3
{[%clk 0:00:32.1]} 39... Qxa5 {[%clk 0:00:18.3]} 40. Bd4 {[%clk 0:00:32.5]}
40... Qa6 {[%clk 0:00:11]} 41. Bxg7+ {[%clk 0:00:28.2]} 41... Rxg7 {[%clk
0:00:11]} 42. Re8+ {[%clk 0:00:29.1]} 42... Kh7 {[%clk 0:00:09.3]} 43. Rxg7#
{[%clk 0:00:28.8]} 1-0

[Event "*** Titled Tuesday Blitz"]
[Site "Chess.com"]
[Date "2020.01.07"]
[Round "1"]
[White "Doraemon7"]
[Black "masrahi"]
[Result "1-0"]
[WhiteElo "2521"]
[BlackElo "1973"]
[TimeControl "180+2"]
[EndTime "13:09:06 PST"]
[Termination "Doraemon7 won by resignation"]

1. d4 {[%clk 0:03:00.1]} 1... Nf6 {[%clk 0:03:00.4]} 2. c4 {[%clk 0:03:01.2]}
2... g6 {[%clk 0:03:01]} 3. Nc3 {[%clk 0:03:00.7]} 3... Bg7 {[%clk 0:03:02.5]}
4. Nf3 {[%clk 0:03:00.1]} 4... d6 {[%clk 0:03:04]} 5. Bg5 {[%clk 0:03:01.6]}
5... c6 {[%clk 0:03:04.3]} 6. e3 {[%clk 0:03:02.5]} 6... Qa5 {[%clk 0:03:05.7]}
7. Bh4 {[%clk 0:02:55.7]} 7... Bg4 {[%clk 0:03:05.8]} 8. Be2 {[%clk 0:02:53.7]}
8... O-O {[%clk 0:03:04.3]} 9. O-O {[%clk 0:02:54]} 9... Nbd7 {[%clk 0:03:03.9]}
10. Qc2 {[%clk 0:02:50.5]} 10... e5 {[%clk 0:02:41.8]} 11. b4 {[%clk 0:02:33.3]}
11... Qc7 {[%clk 0:02:40]} 12. dxe5 {[%clk 0:02:32.6]} 12... dxe5 {[%clk
0:02:39.2]} 13. Nd2 {[%clk 0:02:08.6]} 13... Bxe2 {[%clk 0:02:30.5]} 14. Nxe2
{[%clk 0:02:10.5]} 14... a5 {[%clk 0:02:22.1]} 15. a3 {[%clk 0:02:09]} 15... h6
{[%clk 0:01:54.1]} 16. Rac1 {[%clk 0:02:07.1]} 16... axb4 {[%clk 0:01:49.2]} 17.
axb4 {[%clk 0:02:08.2]} 17... Ra3 {[%clk 0:01:44.9]} 18. Nc3 {[%clk 0:01:53.7]}
18... Rfa8 {[%clk 0:01:41]} 19. Rfd1 {[%clk 0:01:54.3]} 19... Kh7 {[%clk
0:01:38.2]} 20. Nde4 {[%clk 0:01:44.5]} 20... Nxe4 {[%clk 0:01:36.8]} 21. Nxe4
{[%clk 0:01:46.4]} 21... f5 {[%clk 0:01:30.9]} 22. Nd6 {[%clk 0:01:43.9]} 22...
e4 {[%clk 0:01:20.4]} 23. Bg3 {[%clk 0:01:30.4]} 23... Ne5 {[%clk 0:01:08.9]}
24. c5 {[%clk 0:01:15.3]} 24... Qe7 {[%clk 0:00:44.2]} 25. Bxe5 {[%clk
0:00:58.9]} 25... Qxe5 {[%clk 0:00:32.1]} 26. Nc4 {[%clk 0:00:56.9]} 26... Qe7
{[%clk 0:00:13.4]} 27. Nxa3 {[%clk 0:00:57.7]} 27... Rxa3 {[%clk 0:00:13.8]} 28.
Rb1 {[%clk 0:00:55.8]} 28... Qe6 {[%clk 0:00:12.4]} 29. Qd2 {[%clk 0:00:55.5]}
29... Ra2 {[%clk 0:00:10.2]} 30. Qd7 {[%clk 0:00:51]} 30... Qc4 {[%clk
0:00:11.3]} 31. Rf1 {[%clk 0:00:46.7]} 31... Qe2 {[%clk 0:00:02.8]} 32. Qxb7
{[%clk 0:00:43.7]} 32... h5 {[%clk 0:00:04.3]} 33. Qxc6 {[%clk 0:00:42.4]} 33...
Kh6 {[%clk 0:00:05.8]} 34. Qd6 {[%clk 0:00:40.3]} 34... Qc2 {[%clk 0:00:05.7]}
35. Qd1 {[%clk 0:00:41.2]} 35... Qc4 {[%clk 0:00:06.2]} 36. Rc1 {[%clk
0:00:38.5]} 36... Qb5 {[%clk 0:00:07.5]} 37. c6 {[%clk 0:00:39.5]} 37... Ra8
{[%clk 0:00:07.3]} 38. c7 {[%clk 0:00:40.6]} 38... Rc8 {[%clk 0:00:08.8]} 39.
Qd8 {[%clk 0:00:41.7]} 39... Qb7 {[%clk 0:00:10.2]} 40. Rfd1 {[%clk 0:00:42.8]}
40... Be5 {[%clk 0:00:10.1]} 41. Qxc8 {[%clk 0:00:43.2]} 41... Qxc8 {[%clk
0:00:10.2]} 42. Rd8 {[%clk 0:00:44.8]} 42... Qb7 {[%clk 0:00:03.3]} 43. c8=Q
{[%clk 0:00:45.3]} 43... Qxb4 {[%clk 0:00:05]} 44. Rh8+ {[%clk 0:00:46.4]} 44...
Kg5 {[%clk 0:00:05.1]} 45. Rd8 {[%clk 0:00:44.4]} 45... Bf6 {[%clk 0:00:06.2]}
46. Rdd1 {[%clk 0:00:44.5]} 46... Qb2 {[%clk 0:00:07.4]} 47. Qc2 {[%clk
0:00:44.5]} 47... h4 {[%clk 0:00:08.9]} 48. Qxb2 {[%clk 0:00:45.6]} 48... Bxb2
{[%clk 0:00:10.3]} 49. Rc6 {[%clk 0:00:47]} 49... f4 {[%clk 0:00:10.3]} 50. Rdd6
{[%clk 0:00:47]} 50... fxe3 {[%clk 0:00:10.9]} 51. fxe3 {[%clk 0:00:48.9]} 51...
h3 {[%clk 0:00:09]} 52. Rxg6+ {[%clk 0:00:49.9]} 52... Kf5 {[%clk 0:00:10.1]}
53. gxh3 {[%clk 0:00:51.3]} 53... Bc3 {[%clk 0:00:09.2]} 54. Rxc3 {[%clk
0:00:51.4]} 54... Kxg6 {[%clk 0:00:11.1]} 55. Rc5 {[%clk 0:00:52.6]} 1-0

[Event "*** Titled Tuesday Blitz"]
[Site "Chess.com"]
[Date "2020.01.07"]
[Round "1"]
[White "BasilSmash"]
[Black "Korchmar_Vasiliy"]
[Result "0-1"]
[WhiteElo "2410"]
[BlackElo "2788"]
[TimeControl "180+2"]
[EndTime "13:09:16 PST"]
[Termination "Korchmar_Vasiliy won on time"]

1. d4 {[%clk 0:03:01.7]} 1... Nf6 {[%clk 0:03:00.2]} 2. Nf3 {[%clk 0:03:02.1]}
2... g6 {[%clk 0:03:01.5]} 3. g3 {[%clk 0:03:03.2]} 3... Bg7 {[%clk 0:03:02.6]}
4. Bg2 {[%clk 0:03:04.4]} 4... O-O {[%clk 0:03:04.2]} 5. O-O {[%clk 0:03:05.9]}
5... d6 {[%clk 0:03:05.7]} 6. b3 {[%clk 0:03:06.9]} 6... Nbd7 {[%clk 0:02:58.1]}
7. Bb2 {[%clk 0:03:06.8]} 7... a5 {[%clk 0:02:58.9]} 8. c4 {[%clk 0:03:03.3]}
8... a4 {[%clk 0:02:59.6]} 9. b4 {[%clk 0:03:00.6]} 9... Nb6 {[%clk 0:02:57.8]}
10. Qc1 {[%clk 0:02:51.7]} 10... d5 {[%clk 0:02:54.1]} 11. cxd5 {[%clk
0:02:41.2]} 11... Nfxd5 {[%clk 0:02:38.7]} 12. a3 {[%clk 0:02:40.2]} 12... Be6
{[%clk 0:02:27.6]} 13. Nbd2 {[%clk 0:02:40.2]} 13... c6 {[%clk 0:02:18.8]} 14.
Re1 {[%clk 0:02:37.5]} 14... Nc7 {[%clk 0:02:06.5]} 15. Qc2 {[%clk 0:02:32.3]}
15... Nb5 {[%clk 0:02:07]} 16. Rad1 {[%clk 0:02:30]} 16... Qc8 {[%clk 0:02:01]}
17. Qc1 {[%clk 0:02:15.8]} 17... Rd8 {[%clk 0:02:00.5]} 18. e3 {[%clk
0:02:08.3]} 18... Bf5 {[%clk 0:01:57.4]} 19. e4 {[%clk 0:01:57.7]} 19... Bh3
{[%clk 0:01:58]} 20. Bh1 {[%clk 0:01:56.3]} 20... Nxd4 {[%clk 0:01:47.7]} 21.
Nxd4 {[%clk 0:01:46.5]} 21... Bxd4 {[%clk 0:01:49.6]} 22. Bxd4 {[%clk
0:01:46.6]} 22... Rxd4 {[%clk 0:01:51.5]} 23. Nf3 {[%clk 0:01:40.2]} 23... Rxd1
{[%clk 0:01:47.4]} 24. Rxd1 {[%clk 0:01:42.1]} 24... Qg4 {[%clk 0:01:07]} 25.
Ne5 {[%clk 0:01:33.7]} 25... Qe6 {[%clk 0:01:04.8]} 26. Qc5 {[%clk 0:01:30.6]}
26... Qb3 {[%clk 0:00:36.8]} 27. Bf3 {[%clk 0:01:19.5]} 27... Nd7 {[%clk
0:00:17.4]} 28. Rxd7 {[%clk 0:01:07.6]} 28... Bxd7 {[%clk 0:00:18.3]} 29. Qxe7
{[%clk 0:01:07.7]} 29... Bh3 {[%clk 0:00:14.3]} 30. Qd6 {[%clk 0:00:45.6]} 30...
Qb1+ {[%clk 0:00:14.7]} 31. Qd1 {[%clk 0:00:39.5]} 31... Qxd1+ {[%clk
0:00:15.6]} 32. Bxd1 {[%clk 0:00:41.4]} 32... Rd8 {[%clk 0:00:14.7]} 33. Bxa4
{[%clk 0:00:42]} 33... Ra8 {[%clk 0:00:15.6]} 34. Bb3 {[%clk 0:00:42.4]} 34...
Rxa3 {[%clk 0:00:16.7]} 35. Bxf7+ {[%clk 0:00:43.1]} 35... Kf8 {[%clk
0:00:16.5]} 36. f4 {[%clk 0:00:44.3]} 36... Ra1+ {[%clk 0:00:12.1]} 37. Kf2
{[%clk 0:00:44.7]} 37... Rb1 {[%clk 0:00:13.1]} 38. g4 {[%clk 0:00:40]} 38...
Rxb4 {[%clk 0:00:14.1]} 39. Kg3 {[%clk 0:00:39.9]} 39... Bf1 {[%clk 0:00:15.5]}
40. Kf3 {[%clk 0:00:17.2]} 40... Rb2 {[%clk 0:00:16.6]} 41. f5 {[%clk
0:00:17.3]} 41... gxf5 {[%clk 0:00:14.5]} 42. gxf5 {[%clk 0:00:18.3]} 42... Bg2+
{[%clk 0:00:13.9]} 43. Kf4 {[%clk 0:00:17.9]} 43... Re2 {[%clk 0:00:12.4]} 44.
Nd7+ {[%clk 0:00:04.2]} 44... Kxf7 {[%clk 0:00:13.1]} 45. e5 {[%clk 0:00:03.5]}
45... Bd5 {[%clk 0:00:09.6]} 0-1

[Event "*** Titled Tuesday Blitz"]
[Site "Chess.com"]
[Date "2020.01.07"]
[Round "1"]
[White "Dynamikus"]
[Black "RaunakSadhwani2005"]
[Result "1-0"]
[WhiteElo "2845"]
[BlackElo "2750"]
[TimeControl "180+2"]
[EndTime "13:09:20 PST"]
[Termination "Dynamikus won by resignation"]

1. Nf3 {[%clk 0:03:01.7]} 1... d5 {[%clk 0:02:58.7]} 2. c4 {[%clk 0:03:03.6]}
2... d4 {[%clk 0:02:58.4]} 3. g3 {[%clk 0:03:04.3]} 3... Nc6 {[%clk 0:02:52.8]}
4. Bg2 {[%clk 0:03:02.9]} 4... e5 {[%clk 0:02:53.7]} 5. d3 {[%clk 0:03:04.8]}
5... Bb4+ {[%clk 0:02:52.7]} 6. Bd2 {[%clk 0:03:01.7]} 6... a5 {[%clk
0:02:49.4]} 7. O-O {[%clk 0:03:01.3]} 7... Nge7 {[%clk 0:02:47.7]} 8. Na3 {[%clk
0:02:57.1]} 8... f6 {[%clk 0:02:42.9]} 9. e3 {[%clk 0:02:56.3]} 9... Bg4 {[%clk
0:02:41.1]} 10. Nc2 {[%clk 0:02:50.7]} 10... Bxd2 {[%clk 0:02:40.4]} 11. Qxd2
{[%clk 0:02:52.6]} 11... O-O {[%clk 0:02:33.5]} 12. exd4 {[%clk 0:02:50.9]}
12... Bxf3 {[%clk 0:02:30.8]} 13. Bxf3 {[%clk 0:02:48.8]} 13... Nxd4 {[%clk
0:02:32.2]} 14. Nxd4 {[%clk 0:02:26.2]} 14... Qxd4 {[%clk 0:02:32.3]} 15. Bxb7
{[%clk 0:02:27.5]} 15... Rab8 {[%clk 0:02:33.7]} 16. Bg2 {[%clk 0:02:14.9]}
16... Qc5 {[%clk 0:02:19.9]} 17. Rab1 {[%clk 0:02:04.9]} 17... Rfd8 {[%clk
0:02:20.3]} 18. Qc3 {[%clk 0:02:04.2]} 18... Qb4 {[%clk 0:02:18.8]} 19. Qc2
{[%clk 0:01:57.1]} 19... Nf5 {[%clk 0:02:18.1]} 20. a3 {[%clk 0:01:28.5]} 20...
Qb3 {[%clk 0:02:17.1]} 21. Bd5+ {[%clk 0:01:20.2]} 21... Kh8 {[%clk 0:02:10.3]}
22. Qc3 {[%clk 0:01:16.6]} 22... Nd4 {[%clk 0:01:49.2]} 23. Qxa5 {[%clk
0:01:07.4]} 23... c6 {[%clk 0:01:50]} 24. Be4 {[%clk 0:01:05.8]} 24... f5 {[%clk
0:01:40.3]} 25. Bg2 {[%clk 0:01:03.6]} 25... Re8 {[%clk 0:01:41.7]} 26. Rfe1
{[%clk 0:00:52.6]} 26... Qxd3 {[%clk 0:01:37.3]} 27. Rbd1 {[%clk 0:00:53.3]}
27... Qc2 {[%clk 0:01:31]} 28. b4 {[%clk 0:00:40.6]} 28... Rbd8 {[%clk
0:01:31.7]} 29. Kh1 {[%clk 0:00:26.5]} 29... e4 {[%clk 0:01:21.2]} 30. Rf1
{[%clk 0:00:25.5]} 30... Qxc4 {[%clk 0:01:18.9]} 31. Rc1 {[%clk 0:00:26.5]}
31... Qe6 {[%clk 0:01:16.3]} 32. Qb6 {[%clk 0:00:24.8]} 32... Qa2 {[%clk
0:01:08.4]} 33. Rcd1 {[%clk 0:00:21.5]} 33... Qb2 {[%clk 0:01:08.4]} 34. a4
{[%clk 0:00:19.4]} 34... Rd5 {[%clk 0:00:33.9]} 35. a5 {[%clk 0:00:19]} 35...
Qe2 {[%clk 0:00:34]} 36. Rxd4 {[%clk 0:00:18]} 36... Rb5 {[%clk 0:00:33]} 37.
Qxc6 {[%clk 0:00:18.9]} 37... Rbb8 {[%clk 0:00:34.5]} 38. Qc4 {[%clk 0:00:18.3]}
38... Qb2 {[%clk 0:00:34.5]} 39. a6 {[%clk 0:00:18.8]} 39... Rbc8 {[%clk
0:00:33.5]} 40. Qd5 {[%clk 0:00:17.8]} 40... h6 {[%clk 0:00:34.5]} 41. b5 {[%clk
0:00:18.2]} 41... e3 {[%clk 0:00:35.1]} 42. fxe3 {[%clk 0:00:18.8]} 42... Rxe3
{[%clk 0:00:36.6]} 43. a7 {[%clk 0:00:18.5]} 43... Ree8 {[%clk 0:00:37.1]} 44.
Ra4 {[%clk 0:00:14.6]} 44... Red8 {[%clk 0:00:21.5]} 45. Qxf5 {[%clk 0:00:12.4]}
45... Rc1 {[%clk 0:00:10.4]} 1-0